bitfinex/quotes_SOLUSD_20260102
["timestamp","ask_amount","ask_price","bid_price","bid_amount"]
[1767370597950,0.68557674,130.48,130.4,34.17111103]
[1767370598132,0.68557674,130.48,130.41,0.45975174]
[1767370598333,0.68557674,130.48,130.41,8.1278495]
[1767370598527,9.94238693,130.42,130.41,7.66812361]
[1767370598723,9.94238693,130.42,130.39,19.17248748]
[1767370598938,0.68557674,130.42,130.38,22.66966834]
[1767370599245,14.66557674,130.42,130.38,41.84438838]
[1767370599446,13.98,130.42,130.4,9.94238693]
[1767370599752,14.66557674,130.42,130.38,17.61191242]
[1767370599946,0.68557674,130.41,130.38,9.94238693]
[1767370600125,14.66557674,130.41,130.36,34.17740129]
[1767370600326,13.98,130.43,130.4,17.61103836]
[1767370600625,0.68557674,130.46,130.42,9.94238693]
[1767370600934,0.68557674,130.46,130.4,7.66865143]
[1767370600935,0.68557674,130.45,130.4,7.66865143]
[1767370601133,10.62796367,130.45,130.39,7.66907203]
[1767370601322,21.64477281,130.47,130.38,17.61206714]
[1767370601323,0.68557674,130.43,130.38,17.61206714]
[1767370601522,14.66557674,130.42,130.36,15.0]
[1767370601728,14.66557674,130.42,130.37,9.94238693]
[1767370601929,14.66557674,130.42,130.37,7.67011502]
[1767370601930,10.62796367,130.42,130.37,7.67011502]
[1767370602144,14.66557674,130.42,130.37,7.67011502]
[1767370602336,14.66557674,130.42,130.38,9.94238693]
[1767370602650,14.66557674,130.42,130.37,17.61250195]
[1767370603056,0.68557674,130.48,130.4,0.45975174]
[1767370603226,0.68557674,130.47,130.43,9.94238693]
[1767370603425,0.68557674,130.47,130.42,9.94238693]
[1767370603633,24.60796367,130.47,130.4,23.12800981]
[1767370603848,10.62796367,130.45,130.4,17.61101234]
[1767370604050,21.64470463,130.47,130.41,9.94238693]
[1767370604051,0.68557674,130.44,130.41,9.94238693]
[1767370604232,0.68557674,130.44,130.42,9.94238693]
[1767370604432,24.62796367,130.46,130.41,9.94238693]
[1767370604648,0.68557674,130.45,130.4,9.94238693]
[1767370604949,10.62796367,130.44,130.38,17.61212814]
[1767370605151,0.68557674,130.44,130.38,7.66974121]
[1767370605446,0.68557674,130.41,130.36,7.67069307]
[1767370605652,0.68557674,130.41,130.37,7.67020251]
[1767370605827,14.68557674,130.41,130.37,7.67020251]
[1767370606026,14.68557674,130.41,130.37,17.61258944]
[1767370606248,0.68557674,130.41,130.37,17.61258944]
[1767370606433,14.0,130.42,130.38,9.94238693]
[1767370606639,0.68557674,130.43,130.39,9.94238693]
[1767370606849,14.68557674,130.43,130.37,26.84639335]
[1767370607036,14.68557674,130.43,130.38,9.94238693]
[1767370607235,14.0,130.43,130.41,9.94238693]
[1767370607441,14.68557674,130.45,130.38,0.45975174]
[1767370607749,14.68557674,130.45,130.43,0.45991284]
[1767370608134,0.68557674,130.48,130.44,9.94238693]
[1767370608328,42.29851524,130.56,130.43,8.1266368]
[1767370608329,0.68557674,130.5,130.43,8.1266368]
[1767370608528,0.68557674,130.5,130.46,9.94238693]
[1767370608928,0.68557674,130.5,130.43,27.29400627]
[1767370609133,0.68557674,130.48,130.43,0.45991284]
[1767370609332,0.68557674,130.47,130.43,0.45991284]
[1767370609633,0.68557674,130.45,130.43,0.45991284]
[1767370610131,0.68557674,130.44,130.43,0.45991284]
[1767370610335,0.68557674,130.44,130.43,9.94238693]
[1767370610648,13.98,130.44,130.39,0.6579083]
[1767370610848,9.20216996,130.52,130.43,9.20216996]
[1767370611033,13.98,130.51,130.47,9.20216996]
[1767370611554,13.98,130.51,130.45,0.2299461]
[1767370611555,65.10915357,130.55,130.45,0.2299461]
[1767370611730,65.10915357,130.55,130.41,7.66810544]
[1767370611731,36.02620428,130.48,130.4,0.6579083]
[1767370611935,9.20216996,130.46,130.4,0.6579083]
[1767370612141,13.98,130.47,130.41,9.20216996]
[1767370612457,13.98,130.46,130.38,8.32777965]
[1767370612659,9.20216996,130.45,130.38,0.6579083]
[1767370612876,9.20216996,130.45,130.36,7.67080747]
[1767370612877,9.20216996,130.44,130.36,0.6579083]
[1767370613073,13.98,130.43,130.4,9.20216996]
[1767370613386,13.98,130.43,130.38,9.20216996]
[1767370613553,23.18216996,130.43,130.33,7.67250043]
[1767370613869,9.20216996,130.41,130.36,9.20216996]
[1767370614052,26.83637478,130.42,130.33,7.67271676]
[1767370614254,14.0,130.41,130.37,9.20216996]
[1767370614847,14.0,130.41,130.33,7.67271676]
[1767370615141,23.20216996,130.41,130.32,8.33125842]
[1767370615459,14.0,130.41,130.32,9.86007826]
[1767370615791,14.0,130.41,130.36,9.20216996]
[1767370615792,7.66871165,130.4,130.36,9.20216996]
[1767370616140,14.0,130.39,130.36,9.20216996]
[1767370616768,14.0,130.39,130.33,8.38105925]
[1767370616988,19.16883913,130.42,130.34,8.38056122]
[1767370616989,14.0,130.38,130.34,8.38056122]
[1767370617262,7.66769374,130.42,130.34,8.38056122]
[1767370617263,14.0,130.39,130.37,9.20216996]
[1767370617463,14.0,130.39,130.38,9.20216996]
[1767370617651,7.66735879,130.43,130.38,9.20216996]
[1767370617852,14.0,130.42,130.4,9.20216996]
[1767370618266,14.0,130.46,130.41,9.20216996]
[1767370618558,14.0,130.46,130.42,9.20216996]
[1767370619363,9.20216996,130.44,130.39,0.70836338]
[1767370619779,9.20216996,130.43,130.39,0.70836338]
[1767370620075,14.0,130.45,130.39,0.70836338]
[1767370620076,21.66591496,130.45,130.39,0.70836338]
[1767370620277,9.20216996,130.44,130.4,0.70836338]
[1767370620481,9.20216996,130.46,130.42,0.70836338]
[1767370620690,9.20216996,130.44,130.4,0.70836338]
[1767370620984,9.20216996,130.41,130.38,0.70836338]
[1767370621863,174.35013837,130.5,130.38,0.70836338]
[1767370622179,9.20216996,130.44,130.4,0.70836338]
[1767370622359,9.20216996,130.42,130.4,0.70836338]
[1767370622865,26.82197869,130.49,130.4,0.70836338]
[1767370622866,14.0,130.47,130.41,9.20216996]
[1767370623064,14.0,130.47,130.43,0.70836338]
[1767370623366,9.20216996,130.45,130.39,0.70836338]
[1767370623674,9.20216996,130.46,130.42,0.70836338]
[1767370623883,7.6604872,130.54,130.44,9.91053334]
[1767370624079,9.20216996,130.47,130.43,0.70836338]
[1767370624282,23.20216996,130.49,130.44,0.70836338]
[1767370624459,23.20216996,130.49,130.45,0.70836338]
[1767370624660,9.20216996,130.48,130.45,0.6791427]
[1767370624883,14.0,130.49,130.43,9.20216996]
[1767370625181,13.275,130.49,130.47,9.20216996]
[1767370625386,9.20216996,130.53,130.47,9.20216996]
[1767370625568,21.6601212,130.55,130.41,44.39016659]
[1767370625569,0.64794266,130.5,130.46,9.20216996]
[1767370625767,9.20216996,130.5,130.43,7.66694778]
[1767370625975,9.20216996,130.49,130.43,7.66694778]
[1767370626172,9.20216996,130.47,130.4,34.17107704]
[1767370626366,9.20216996,130.47,130.41,16.87007709]
[1767370626585,9.20216996,130.46,130.4,16.87084855]
[1767370626787,9.20216996,130.46,130.41,0.70836338]
[1767370626985,9.20216996,130.45,130.41,0.70836338]
[1767370627369,14.64794266,130.48,130.41,0.70836338]
[1767370627789,9.20216996,130.43,130.39,0.70836338]
[1767370627968,9.20216996,130.41,130.39,0.70836338]
[1767370628286,14.0,130.44,130.37,0.70836338]
[1767370628287,9.20216996,130.42,130.37,0.70836338]
[1767370628665,14.0,130.44,130.37,0.70836338]
[1767370628985,9.20216996,130.42,130.38,0.70836338]
[1767370629471,8.32286164,130.45,130.38,9.91053334]
[1767370629676,9.20216996,130.42,130.39,0.70836338]
[1767370629876,7.66648462,130.44,130.39,0.70836338]
[1767370630183,9.20216996,130.42,130.39,0.70836338]
[1767370630379,9.20216996,130.44,130.4,0.70836338]
[1767370630687,9.20216996,130.43,130.4,0.70836338]
[1767370630886,14.0,130.45,130.4,0.70836338]
[1767370631086,8.32041707,130.5,130.44,0.70836338]
[1767370631266,21.85755159,130.51,130.44,0.70836338]
[1767370631470,9.20216996,130.48,130.44,0.70836338]
[1767370632388,7.66307466,130.5,130.44,0.70836338]
[1767370632689,9.20216996,130.46,130.42,0.70836338]
[1767370633587,9.20216996,130.43,130.39,0.70836338]
[1767370633891,0.64350539,130.46,130.39,0.70836338]
[1767370634072,14.0,130.45,130.4,0.70836338]
[1767370634267,9.20216996,130.45,130.41,0.70836338]
[1767370634473,9.20216996,130.44,130.41,0.70836338]
[1767370634676,0.65708932,130.5,130.41,9.91053334]
[1767370634884,14.65708932,130.5,130.44,0.70836338]
[1767370635076,22.31999888,130.5,130.44,0.70836338]
[1767370635394,9.20216996,130.47,130.44,0.70836338]
[1767370635595,14.0,130.49,130.44,0.70836338]
[1767370635795,7.85666159,130.53,130.46,9.20216996]
[1767370635976,9.20216996,130.5,130.46,0.70836338]
[1767370636176,7.66170705,130.52,130.46,0.70836338]
[1767370636373,9.20216996,130.47,130.42,0.70836338]
[1767370636601,14.20421523,130.49,130.43,0.70836338]
[1767370636775,14.20421523,130.49,130.43,8.37520136]
[1767370636976,14.20421523,130.49,130.4,19.17129984]
[1767370636977,23.20216996,130.49,130.44,8.37458032]
[1767370637197,9.20216996,130.47,130.42,0.70836338]
[1767370637384,14.0,130.49,130.43,0.70836338]
[1767370637596,9.20216996,130.47,130.43,0.70836338]
[1767370637787,14.0,130.49,130.43,8.3752049]
[1767370637980,14.0,130.49,130.43,0.70836338]
[1767370638195,9.20216996,130.47,130.43,0.70836338]
[1767370638710,9.20216996,130.49,130.44,9.91053334]
[1767370639005,9.20216996,130.48,130.44,0.70836338]
[1767370639199,9.20216996,130.47,130.44,0.70836338]
[1767370639378,9.20216996,130.46,130.42,0.70836338]
[1767370639578,13.98,130.49,130.44,0.70836338]
[1767370639797,23.18216996,130.49,130.45,0.70836338]
[1767370640202,9.20216996,130.48,130.45,0.70836338]
[1767370640710,8.31960446,130.51,130.45,0.70836338]
[1767370640911,9.20216996,130.49,130.45,0.70836338]
[1767370641075,9.20216996,130.48,130.45,0.70836338]
[1767370641781,9.20216996,130.47,130.43,0.70836338]
[1767370642219,9.20216996,130.49,130.45,0.70836338]
[1767370642624,7.8574685,130.51,130.45,0.70836338]
[1767370642915,9.20216996,130.48,130.45,0.70836338]
[1767370643099,9.20216996,130.47,130.45,0.70836338]
[1767370643302,13.98,130.5,130.41,9.91053334]
[1767370643303,9.20216996,130.46,130.41,9.91053334]
[1767370643614,9.20216996,130.45,130.42,0.70836338]
[1767370643809,9.20216996,130.43,130.39,9.20216996]
[1767370644114,9.20216996,130.43,130.39,0.70836338]
[1767370644719,0.65247003,130.45,130.39,0.70836338]
[1767370644922,9.20216996,130.42,130.39,0.70836338]
[1767370645124,9.20216996,130.41,130.39,0.70836338]
[1767370645308,9.20216996,130.4,130.39,0.70836338]
[1767370645508,14.63247003,130.45,130.39,0.70836338]
[1767370645509,9.20216996,130.41,130.39,0.70836338]
[1767370645711,14.63247003,130.45,130.39,9.91053334]
[1767370645911,9.20216996,130.41,130.39,0.70836338]
[1767370646226,9.20216996,130.4,130.37,0.65873672]
[1767370646604,9.20216996,130.39,130.37,0.65873672]
[1767370646920,9.20216996,130.38,130.34,16.87438352]
[1767370647117,9.20216996,130.38,130.34,17.57835574]
[1767370647415,9.20216996,130.38,130.34,7.67221356]
[1767370647795,9.20216996,130.37,130.34,0.70397222]
[1767370647996,13.98,130.4,130.34,0.70397222]
[1767370648215,9.20216996,130.39,130.36,0.70397222]
[1767370648418,13.98,130.4,130.34,9.90614218]
[1767370648614,9.20216996,130.38,130.35,0.70397222]
[1767370649314,9.20216996,130.42,130.38,0.70397222]
[1767370649647,9.20216996,130.39,130.36,0.70397222]
[1767370650028,0.67154172,130.41,130.36,0.70397222]
[1767370650225,0.67154172,130.41,130.34,0.70397222]
[1767370650226,9.20216996,130.38,130.34,0.70397222]
[1767370650820,9.20216996,130.37,130.34,0.70397222]
[1767370651235,14.0,130.39,130.34,0.70397222]
[1767370651437,9.20216996,130.37,130.34,0.70397222]
[1767370652242,9.20216996,130.35,130.31,0.70397222]
[1767370652430,9.20216996,130.34,130.31,0.70397222]
[1767370652737,9.20216996,130.34,130.3,0.70397222]
[1767370652914,0.19047115,130.36,130.3,8.37856489]
[1767370653119,9.20216996,130.34,130.3,8.37856489]
[1767370653337,9.20216996,130.34,130.3,0.70397222]
[1767370653544,9.20216996,130.33,130.28,9.20216996]
[1767370653747,14.0,130.36,130.27,0.2]
[1767370653748,9.20216996,130.3,130.27,0.2]
[1767370653949,14.0,130.36,130.27,8.58032856]
[1767370653950,0.68165642,130.33,130.27,8.58032856]
[1767370654148,9.20216996,130.33,130.29,0.70397222]
[1767370654467,9.20216996,130.31,130.29,0.70397222]
[1767370654654,14.0,130.35,130.29,0.70397222]
[1767370654655,9.20216996,130.32,130.29,0.70397222]
[1767370655048,14.0,130.35,130.29,0.70397222]
[1767370655249,9.17216996,130.32,130.29,0.70397222]
[1767370655450,0.68165642,130.38,130.31,0.70397222]
[1767370655647,9.20216996,130.34,130.31,0.70397222]
[1767370655960,9.20216996,130.37,130.32,9.90614218]
[1767370656157,9.20216996,130.34,130.32,0.70397222]
[1767370656346,9.20216996,130.35,130.32,8.37729015]
[1767370656547,9.20216996,130.35,130.32,0.70397222]
[1767370656749,9.88382638,130.35,130.31,9.20216996]
[1767370657046,0.68165642,130.38,130.32,16.87558227]
[1767370657245,9.20216996,130.36,130.33,0.70397222]
[1767370657547,9.88382638,130.36,130.32,16.87558227]
[1767370657946,9.20216996,130.35,130.32,7.67341231]
[1767370658463,0.68165642,130.36,130.31,16.87602431]
[1767370658761,9.20216996,130.37,130.33,0.70397222]
[1767370658965,14.68165642,130.4,130.33,0.69577932]
[1767370659261,19.1679831,130.43,130.33,14.0]
[1767370659262,9.88382638,130.39,130.33,14.0]
[1767370659443,9.88382638,130.39,130.34,9.20216996]
[1767370659760,0.68165642,130.39,130.32,15.69577932]
[1767370659965,0.68165642,130.39,130.36,9.20216996]
[1767370660162,0.68165642,130.39,130.36,16.87317967]
[1767370660465,6.34937601,130.39,130.36,7.67100971]
[1767370660667,0.68165642,130.39,130.36,7.67100971]
[1767370660847,6.34937601,130.39,130.35,7.67138747]
[1767370661169,0.68165642,130.39,130.36,7.67069344]
[1767370661466,21.66730147,130.43,130.36,7.67069344]
[1767370661467,0.68165642,130.41,130.36,7.67069344]
[1767370661650,6.34937601,130.41,130.37,5.66771959]
[1767370661852,5.66771959,130.4,130.36,13.33841303]
[1767370662057,0.68165642,130.41,130.36,13.33841303]
[1767370662363,6.34937601,130.4,130.36,13.33841303]
[1767370662569,0.68165642,130.39,130.36,13.33841303]
[1767370662884,6.34937601,130.41,130.37,5.66771959]
[1767370663104,0.68165642,130.41,130.38,5.66771959]
[1767370663270,0.68165642,130.41,130.36,26.84835529]
[1767370663572,6.34937601,130.41,130.37,5.66771959]
[1767370663743,6.34937601,130.4,130.35,7.67144438]
[1767370664063,0.68165642,130.37,130.33,7.6725009]
[1767370664268,6.34937601,130.37,130.32,7.67341927]
[1767370664596,0.68165642,130.37,130.34,5.66771959]
[1767370664759,5.66771959,130.4,130.36,6.36349891]
[1767370665070,0.68165642,130.42,130.36,6.36349891]
[1767370665267,5.66771959,130.4,130.36,6.36349891]
[1767370665466,5.66771959,130.4,130.36,0.69577932]
[1767370665666,0.68165642,130.42,130.37,0.69577932]
[1767370665845,5.66771959,130.43,130.38,0.69577932]
[1767370666051,0.68165642,130.42,130.39,5.66771959]
[1767370666251,0.68165642,130.45,130.38,7.66988801]
[1767370666445,5.66771959,130.4,130.34,0.69577932]
[1767370666644,5.66771959,130.39,130.35,5.66771959]
[1767370666846,5.66771959,130.39,130.35,13.33905326]
[1767370667571,5.66771959,130.38,130.35,7.67143624]
[1767370667964,5.66771959,130.39,130.35,7.67143624]
[1767370668166,5.66771959,130.39,130.36,7.67095615]
[1767370668666,5.66771959,130.39,130.35,13.33914744]
[1767370668869,5.66771959,130.38,130.35,7.67142785]
[1767370669050,5.66771959,130.39,130.35,13.33914744]
[1767370669249,0.68165642,130.41,130.35,13.33914744]
[1767370669464,5.66771959,130.39,130.35,7.67142785]
[1767370669666,5.66771959,130.39,130.35,14.03492676]
[1767370669855,5.66771959,130.39,130.35,8.36720717]
[1767370670256,0.68165642,130.41,130.35,14.03492676]
[1767370670257,5.66771959,130.4,130.35,14.03492676]
[1767370670445,5.66771959,130.39,130.35,14.03492676]
[1767370671152,5.66771959,130.4,130.35,14.03492676]
[1767370671352,0.68165642,130.45,130.39,6.36349891]
[1767370671547,5.66771959,130.46,130.41,5.66771959]
[1767370671773,0.68165642,130.46,130.42,5.66771959]
[1767370672103,20.34937601,130.47,130.43,5.66771959]
[1767370672276,5.66771959,130.46,130.42,5.66771959]
[1767370672449,6.34937601,130.47,130.43,5.66771959]
[1767370672776,6.34937601,130.47,130.43,13.33462321]
[1767370672956,6.34937601,130.47,130.43,5.66771959]
[1767370673677,6.34937601,130.47,130.42,13.33511103]
[1767370674668,5.66771959,130.48,130.44,5.66771959]
[1767370674861,5.66771959,130.48,130.42,8.36317076]
[1767370675063,0.68165642,130.49,130.46,5.66771959]
[1767370675259,6.34937601,130.51,130.46,5.66771959]
[1767370675457,5.66771959,130.49,130.44,0.69577932]
[1767370675770,5.66771959,130.49,130.45,5.66771959]
[1767370676175,5.66771959,130.49,130.44,0.69577932]
[1767370676375,0.68165642,130.5,130.45,5.66771959]
[1767370676671,6.344255,130.52,130.48,5.66771959]
[1767370676860,5.76771959,130.53,130.49,5.66771959]
[1767370677174,0.1,130.53,130.49,5.66771959]
[1767370677363,5.76771959,130.53,130.49,5.66771959]
[1767370677563,0.1,130.53,130.5,5.66771959]
[1767370677760,6.444255,130.53,130.48,5.66771959]
[1767370677961,5.66771959,130.52,130.48,5.66771959]
[1767370678168,0.77653541,130.53,130.47,0.69577932]
[1767370678478,0.67653541,130.52,130.45,19.86021013]
[1767370678659,5.66771959,130.49,130.45,5.66771959]
[1767370678854,5.66771959,130.47,130.43,0.69577932]
[1767370679169,0.67653541,130.48,130.42,0.69577932]
[1767370679371,5.66771959,130.45,130.4,14.03204474]
[1767370679607,5.66771959,130.43,130.4,7.66871156]
[1767370679779,5.66771959,130.44,130.41,7.6680861]
[1767370679973,6.344255,130.45,130.41,13.33580569]
[1767370680277,13.98,130.48,130.42,7.66745569]
[1767370680278,0.67653541,130.47,130.42,7.66745569]
[1767370680479,6.344255,130.49,130.45,5.66771959]
[1767370680854,5.66771959,130.47,130.43,7.66660533]
[1767370681074,0.67653541,130.48,130.44,5.66771959]
[1767370681281,6.344255,130.48,130.44,5.66771959]
[1767370681479,6.344255,130.48,130.33,61.58232712]
[1767370681480,0.67653541,130.44,130.35,0.69577932]
[1767370681659,0.67653541,130.41,130.34,5.66771959]
[1767370681863,0.67653541,130.38,130.34,5.66771959]
[1767370682059,8.35013837,130.48,130.36,5.66771959]
[1767370682277,6.344255,130.4,130.34,8.36782021]
[1767370682480,5.66771959,130.38,130.32,48.87875912]
[1767370682671,0.67653541,130.36,130.3,0.69577932]
[1767370682874,6.344255,130.4,130.35,5.66771959]
[1767370683186,5.66771959,130.39,130.33,0.69577932]
[1767370683480,6.344255,130.38,130.32,7.67326202]
[1767370683681,6.344255,130.34,130.29,7.67478165]
[1767370683982,5.66771959,130.32,130.27,14.23939807]
[1767370684167,13.98,130.36,130.27,14.23939807]
[1767370684168,0.67653541,130.36,130.29,5.66771959]
[1767370684357,0.67653541,130.34,130.29,7.6751166]
[1767370684682,0.67653541,130.32,130.28,7.67559973]
[1767370684878,19.17469066,130.39,130.32,0.69577932]
[1767370684879,0.67653541,130.39,130.32,0.69577932]
[1767370685060,6.344255,130.39,130.34,5.66771959]
[1767370685262,0.67653541,130.39,130.35,5.66771959]
[1767370685563,0.67653541,130.39,130.33,6.36349891]
[1767370685761,5.66771959,130.38,130.33,0.69577932]
[1767370685961,6.344255,130.35,130.3,5.66771959]
[1767370686177,6.344255,130.35,130.28,42.56081718]
[1767370686178,5.66771959,130.34,130.28,42.56081718]
[1767370686361,0.67653541,130.35,130.29,0.69577932]
[1767370686561,5.66771959,130.34,130.29,8.37070104]
[1767370686782,5.66771959,130.32,130.27,7.87590234]
[1767370686972,5.66771959,130.31,130.27,7.87590234]
[1767370687167,6.344255,130.32,130.28,7.67576252]
[1767370687469,0.67653541,130.31,130.27,0.2]
[1767370687671,5.66771959,130.31,130.27,0.2]
[1767370687880,5.66771959,130.3,130.27,0.2]
[1767370688185,6.344255,130.35,130.29,8.37061331]
[1767370688366,5.66771959,130.35,130.3,5.66771959]
[1767370688570,5.66771959,130.36,130.31,7.67368152]
[1767370688768,0.67653541,130.39,130.32,6.36349891]
[1767370688984,0.67653541,130.38,130.33,5.66771959]
[1767370689471,6.344255,130.38,130.33,5.66771959]
[1767370689674,5.66771959,130.37,130.32,0.69577932]
[1767370689882,0.67653541,130.37,130.3,15.0]
[1767370690084,0.67653541,130.37,130.32,5.66771959]
[1767370690580,0.67653541,130.37,130.32,7.67306279]
[1767370690784,0.67653541,130.37,130.31,6.36349891]
[1767370690986,0.67653541,130.36,130.32,13.34109467]
[1767370691190,0.67653541,130.35,130.32,7.67337508]
[1767370691370,0.67653541,130.35,130.32,13.34109467]
[1767370691575,0.67653541,130.35,130.32,7.67337508]
[1767370692094,0.67653541,130.34,130.3,13.34190025]
[1767370692273,6.344255,130.36,130.3,13.34190025]
[1767370692594,5.66771959,130.35,130.29,13.34290571]
[1767370692765,0.67653541,130.35,130.3,5.66771959]
[1767370692970,0.67653541,130.37,130.3,0.69577932]
[1767370693279,6.344255,130.37,130.31,0.69577932]
[1767370693478,6.344255,130.37,130.31,6.36349891]
[1767370693677,6.344255,130.37,130.31,0.69577932]
[1767370693873,6.344255,130.37,130.31,6.36349891]
[1767370694093,0.67653541,130.37,130.32,7.67341927]
[1767370694268,6.344255,130.37,130.32,7.67341927]
[1767370694468,0.67653541,130.37,130.32,7.67341927]
[1767370694867,5.66771959,130.36,130.31,8.3697315]
[1767370695096,0.67653541,130.37,130.31,8.3697315]
[1767370695405,5.66771959,130.37,130.32,0.69577932]
[1767370695575,21.66829088,130.41,130.35,6.36349891]
[1767370695576,6.344255,130.41,130.35,6.36349891]
[1767370695777,0.67653541,130.4,130.33,6.36349891]
[1767370695987,6.344255,130.4,130.34,7.67224182]
[1767370696299,5.66771959,130.39,130.34,7.67224182]
[1767370696471,5.66771959,130.38,130.33,8.36842005]
[1767370696976,6.344255,130.37,130.31,0.69577932]
[1767370697293,0.67653541,130.37,130.33,7.67279541]
[1767370697482,5.66771959,130.38,130.33,27.55065099]
[1767370697690,0.67653541,130.4,130.33,27.55065099]
[1767370697869,6.344255,130.4,130.34,5.66771959]
[1767370698073,6.344255,130.4,130.35,7.67165324]
[1767370698494,0.67653541,130.4,130.35,7.67165324]
[1767370698794,5.66771959,130.41,130.35,33.21428525]
[1767370699290,5.66771959,130.4,130.35,26.85078634]
[1767370699499,6.344255,130.4,130.35,26.85078634]
[1767370699670,5.66771959,130.38,130.34,7.67208535]
[1767370700293,5.66771959,130.35,130.31,15.0]
[1767370700499,5.66771959,130.33,130.29,0.69577932]
[1767370701082,5.66771959,130.34,130.3,7.67420968]
[1767370701583,5.66771959,130.32,130.27,0.89577932]
[1767370701890,5.66771959,130.3,130.27,0.2]
[1767370702122,5.66771959,130.3,130.27,7.87630208]
[1767370703201,5.66771959,130.28,130.27,0.2]
[1767370703378,0.67653541,130.31,130.27,0.2]
[1767370703578,5.66771959,130.28,130.27,0.2]
[1767370703895,0.67653541,130.27,130.21,34.89468345]
[1767370704086,5.66771959,130.29,130.24,8.38451461]
[1767370704398,6.344255,130.29,130.24,26.87337721]
[1767370705067,0.67653541,130.29,130.24,7.67804552]
[1767370705273,5.66771959,130.27,130.24,7.67804552]
[1767370705788,0.67653541,130.28,130.24,7.67804552]
[1767370706008,5.66771959,130.26,130.23,7.67851879]
[1767370706206,32.52492168,130.32,130.21,15.0]
[1767370706207,5.66771959,130.25,130.21,15.0]
[1767370706404,5.66771959,130.22,130.2,7.88014882]
[1767370706617,0.72137605,130.23,130.2,0.2]
[1767370706786,0.72137605,130.25,130.2,0.2]
[1767370706982,5.66771959,130.26,130.21,0.67819235]
[1767370708100,5.66771959,130.26,130.21,27.55766644]
[1767370708506,0.72137605,130.27,130.21,27.55766644]
[1767370708706,5.66771959,130.26,130.21,27.55766644]
[1767370709007,7.67517264,130.3,130.2,5.86771959]
[1767370709008,5.66771959,130.23,130.2,7.88044757]
[1767370709313,6.38909564,130.23,130.2,7.8804327]
[1767370709497,0.72137605,130.25,130.21,7.67958092]
[1767370709689,0.72137605,130.28,130.21,8.35777327]
[1767370709895,6.38909564,130.27,130.21,14.02549286]
[1767370710406,7.67472081,130.3,130.21,14.02549286]
[1767370710407,5.66771959,130.25,130.21,8.35777327]
[1767370710613,5.66771959,130.25,130.21,7.67958092]
[1767370711315,5.66771959,130.24,130.21,7.67958092]
[1767370711901,5.66771959,130.22,130.2,0.2]
[1767370712295,5.66771959,130.24,130.2,8.5584501]
[1767370712706,5.66771959,130.24,130.2,27.75967897]
[1767370712905,5.66771959,130.25,130.2,27.08148662]
[1767370713105,5.66771959,130.24,130.2,27.08148662]
[1767370714116,5.66771959,130.23,130.2,7.88025775]
[1767370714321,0.72137605,130.27,130.21,0.67819235]
[1767370714627,21.67458702,130.31,130.21,0.67819235]
[1767370714628,5.66771959,130.26,130.21,0.67819235]
[1767370714909,21.67404615,130.31,130.2,32.74920621]
[1767370714910,5.66771959,130.23,130.2,27.08148662]
[1767370715315,5.66771959,130.24,130.2,27.08148662]
[1767370715615,5.66771959,130.23,130.2,27.08148662]
[1767370715818,5.66771959,130.23,130.2,7.88025775]
[1767370716693,5.66771959,130.24,130.2,7.88025775]
[1767370716893,7.67467589,130.3,130.2,27.75967897]
[1767370717214,0.72137605,130.24,130.2,27.08148662]
[1767370717813,5.66771959,130.25,130.2,27.75967897]
[1767370718208,5.66771959,130.24,130.2,7.88025775]
[1767370718396,5.66771959,130.26,130.21,0.67819235]
[1767370718604,5.66771959,130.25,130.21,0.67819235]
[1767370718798,0.72137605,130.27,130.21,0.67819235]
[1767370719000,5.66771959,130.25,130.21,0.67819235]
[1767370719906,5.66771959,130.25,130.22,7.67931193]
[1767370720426,5.66771959,130.25,130.22,26.87759176]
[1767370720595,5.66771959,130.26,130.22,26.87759176]
[1767370720997,5.66771959,130.25,130.22,26.87759176]
[1767370721398,0.72137605,130.27,130.22,7.67931193]
[1767370721598,5.66771959,130.26,130.22,26.87759176]
[1767370721903,0.72137605,130.29,130.24,7.67813267]
[1767370722129,5.66771959,130.28,130.24,7.67813267]
[1767370722303,5.66771959,130.29,130.24,27.55165671]
[1767370722500,9.2247797,130.29,130.24,27.55165671]
[1767370722694,0.72137605,130.33,130.27,9.90297205]
[1767370722907,7.66988801,130.38,130.25,14.67819235]
[1767370722908,9.2247797,130.29,130.25,14.67819235]
[1767370723335,9.2247797,130.28,130.24,26.87346436]
[1767370723831,9.2247797,130.29,130.24,26.87346436]
[1767370724200,9.2247797,130.29,130.24,27.55165671]
[1767370724509,0.72137605,130.3,130.24,27.55165671]
[1767370724700,9.2247797,130.29,130.24,27.55165671]
[1767370724900,9.2247797,130.27,130.24,26.87346436]
[1767370725102,9.2247797,130.27,130.24,7.67813267]
[1767370725325,9.2247797,130.28,130.24,7.67813267]
[1767370725626,9.2247797,130.26,130.24,7.67813267]
[1767370725830,9.2247797,130.25,130.23,22.5784895]
[1767370726518,9.2247797,130.25,130.23,14.9]
[1767370726702,9.2247797,130.25,130.22,7.6790747]